{"text_format":"1","workbook":"xlsx","n_sheets":2,"sheets":["Wettkampfkarte","Listenvorgaben"],"not_rendered":{"charts":0,"images":1,"macros":1,"external_links":0,"defined_names":9,"comments":0,"pivot_tables":0},"unopened":[],"bounds":{"document_bytes":16777216,"sheet_cells":100000,"rows_first":2000,"rows_last":500,"rows_between":2000,"halvings":0,"cell_chars":16384,"cell_head_chars":4096},"cells_cut":0,"cells_raw":0,"read":"whole","date_system":"1900"}

{"sheet":"Wettkampfkarte","index":0,"n_rows":26,"n_cols":18,"rows_kept":26,"cut":false,"hidden":false,"merged":[[12,1,12,5],[12,7,12,10],[12,12,12,15],[7,7,7,10],[7,12,7,15],[7,2,7,5],[10,2,10,5],[10,7,10,15],[1,17,7,21],[4,7,4,10],[4,12,4,15],[0,1,0,15],[1,1,1,15],[4,2,4,5],[2,2,2,15]]}
[]
[null,null,null,null,null,null,null,null,null,null,null,null,null,null,null,null,null,"Zur Berechnung der Schwierigkeit müssen Makros aktiviert sein."]
[null,null,"Abgabe der Wettkampfkarten bis Di., 18.06.2024 an wettkampfkarte@filder-pokal.de\nBitte die Wettkampfkarten im Excel-Format (xslm) abgebgen, nicht als PDF."]
[null,null,"Vorname",null,null,null,null,"Nachname",null,null,null,null,"Jahrgang"]
[]
[]
[null,null,"Wettkampfklasse Nr",null,null,null,null,"AK",null,null,null,null,"Geschlecht"]
[null,null,null,null,null,null,null,{"$f":"VLOOKUP(Listenvorgaben!K1,Listenvorgaben!A1:G9,2,FALSE)","v":""},null,null,null,null,{"$f":"VLOOKUP(Listenvorgaben!K1,Listenvorgaben!A1:G9,3,FALSE)","v":""}]
[]
[null,null,"Pflicht",null,null,null,null,"Verein"]
[null,null,{"$f":"IF(ISBLANK(Klasse)=FALSE,VLOOKUP(Klasse,Listenvorgaben!A1:D8,4,FALSE),\"\")","v":""}]
[]
[null,"1. Durchgang",null,null,null,null,null,"2. Durchgang",null,null,null,null,"3. Durchgang"]
[]
[null,null,"Numerisch","(*)","SKG","KR-Wertung",null,null,"Numerisch","SKG","KR-Wertung",null,null,"Numerisch","SKG","KR-Wertung"]
[null,1,null,null,{"$f":"IF(ISERROR(Schwierigkeit(C16)),\"\",Schwierigkeit(C16)*10)","v":""},null,null,1,null,{"$f":"IF(ISERROR(Schwierigkeit(I16)),\"\",Schwierigkeit(I16)*10)","v":""},null,null,1,null,{"$f":"IF(ISERROR(Schwierigkeit(N16)),\"\",Schwierigkeit(N16)*10)","v":""}]
[null,2,null,null,{"$f":"IF(ISERROR(Schwierigkeit(C17)),\"\",Schwierigkeit(C17)*10)","v":""},null,null,2,null,{"$f":"IF(ISERROR(Schwierigkeit(I17)),\"\",Schwierigkeit(I17)*10)","v":""},null,null,2,null,{"$f":"IF(ISERROR(Schwierigkeit(N17)),\"\",Schwierigkeit(N17)*10)","v":""}]
[null,3,null,null,{"$f":"IF(ISERROR(Schwierigkeit(C18)),\"\",Schwierigkeit(C18)*10)","v":""},null,null,3,null,{"$f":"IF(ISERROR(Schwierigkeit(I18)),\"\",Schwierigkeit(I18)*10)","v":""},null,null,3,null,{"$f":"IF(ISERROR(Schwierigkeit(N18)),\"\",Schwierigkeit(N18)*10)","v":""}]
[null,4,null,null,{"$f":"IF(ISERROR(Schwierigkeit(C19)),\"\",Schwierigkeit(C19)*10)","v":""},null,null,4,null,{"$f":"IF(ISERROR(Schwierigkeit(I19)),\"\",Schwierigkeit(I19)*10)","v":""},null,null,4,null,{"$f":"IF(ISERROR(Schwierigkeit(N19)),\"\",Schwierigkeit(N19)*10)","v":""}]
[null,5,null,null,{"$f":"IF(ISERROR(Schwierigkeit(C20)),\"\",Schwierigkeit(C20)*10)","v":""},null,null,5,null,{"$f":"IF(ISERROR(Schwierigkeit(I20)),\"\",Schwierigkeit(I20)*10)","v":""},null,null,5,null,{"$f":"IF(ISERROR(Schwierigkeit(N20)),\"\",Schwierigkeit(N20)*10)","v":""}]
[null,6,null,null,{"$f":"IF(ISERROR(Schwierigkeit(C21)),\"\",Schwierigkeit(C21)*10)","v":""},null,null,6,null,{"$f":"IF(ISERROR(Schwierigkeit(I21)),\"\",Schwierigkeit(I21)*10)","v":""},null,null,6,null,{"$f":"IF(ISERROR(Schwierigkeit(N21)),\"\",Schwierigkeit(N21)*10)","v":""}]
[null,7,null,null,{"$f":"IF(ISERROR(Schwierigkeit(C22)),\"\",Schwierigkeit(C22)*10)","v":""},null,null,7,null,{"$f":"IF(ISERROR(Schwierigkeit(I22)),\"\",Schwierigkeit(I22)*10)","v":""},null,null,7,null,{"$f":"IF(ISERROR(Schwierigkeit(N22)),\"\",Schwierigkeit(N22)*10)","v":""}]
[null,8,null,null,{"$f":"IF(ISERROR(Schwierigkeit(C23)),\"\",Schwierigkeit(C23)*10)","v":""},null,null,8,null,{"$f":"IF(ISERROR(Schwierigkeit(I23)),\"\",Schwierigkeit(I23)*10)","v":""},null,null,8,null,{"$f":"IF(ISERROR(Schwierigkeit(N23)),\"\",Schwierigkeit(N23)*10)","v":""}]
[null,9,null,null,{"$f":"IF(ISERROR(Schwierigkeit(C24)),\"\",Schwierigkeit(C24)*10)","v":""},null,null,9,null,{"$f":"IF(ISERROR(Schwierigkeit(I24)),\"\",Schwierigkeit(I24)*10)","v":""},null,null,9,null,{"$f":"IF(ISERROR(Schwierigkeit(N24)),\"\",Schwierigkeit(N24)*10)","v":""}]
[null,10,null,null,{"$f":"IF(ISERROR(Schwierigkeit(C25)),\"\",Schwierigkeit(C25)*10)","v":""},null,null,10,null,{"$f":"IF(ISERROR(Schwierigkeit(I25)),\"\",Schwierigkeit(I25)*10)","v":""},null,null,10,null,{"$f":"IF(ISERROR(Schwierigkeit(N25)),\"\",Schwierigkeit(N25)*10)","v":""}]
[null,null,null,null,{"$f":"SUM(E16:E25)/10","v":0},null,null,null,null,{"$f":"SUM(J16:J25)/10","v":0},null,null,null,null,{"$f":"SUM(O16:O25)/10","v":0}]

{"sheet":"Listenvorgaben","index":1,"n_rows":9,"n_cols":15,"rows_kept":9,"cut":false,"hidden":true,"merged":[]}
[1,"AK bis 12","w","W11","M7","M6","M5",null,2020,2012,{"$f":"Klasse","v":0},{"$f":"VLOOKUP($K$1,Listenvorgaben!$A$1:$G$9,4,FALSE)","v":""},null,"AK bis 12",{"$f":"VLOOKUP(K1,A1:J9,9,FALSE)","v":2020}]
[2,"AK bis 12","m","W11","M7","M6","M5",null,2020,2012,null,{"$f":"VLOOKUP($K$1,Listenvorgaben!$A$1:$G$9,5,FALSE)","v":""},null,"AK 13-14",{"$f":"VLOOKUP(K1,A1:J9,10,FALSE)","v":0}]
[3,"AK 13-14","w","W13",{"$f":"\"\"","v":""},{"$f":"\"\"","v":""},{"$f":"\"\"","v":""},null,2011,2010,null,{"$f":"VLOOKUP($K$1,Listenvorgaben!$A$1:$G$9,6,FALSE)","v":""},null,"AK 15-16"]
[4,"AK 13-14","m","W13",{"$f":"\"\"","v":""},{"$f":"\"\"","v":""},{"$f":"\"\"","v":""},null,2011,2010,null,{"$f":"VLOOKUP($K$1,Listenvorgaben!$A$1:$G$9,7,FALSE)","v":""},null,"AK 17+"]
[5,"AK 15-16","w","W13",{"$f":"\"\"","v":""},{"$f":"\"\"","v":""},{"$f":"\"\"","v":""},null,2009,2008]
[6,"AK 15-16","m","W13",{"$f":"\"\"","v":""},{"$f":"\"\"","v":""},{"$f":"\"\"","v":""},null,2009,2008]
[7,"AK 17+","w","Kür",{"$f":"\"\"","v":""},{"$f":"\"\"","v":""},{"$f":"\"\"","v":""},null,2007,1900]
[8,"AK 17+","m","Kür",{"$f":"\"\"","v":""},{"$f":"\"\"","v":""},{"$f":"\"\"","v":""},null,2007,1900]
[0,{"$f":"\"\"","v":""},{"$f":"\"\"","v":""},{"$f":"\"\"","v":""},{"$f":"\"\"","v":""},{"$f":"\"\"","v":""},{"$f":"\"\"","v":""},null,2020,0]